bitfinex/quotes_BTCUSD_20220303
["timestamp","ask_amount","ask_price","bid_price","bid_amount"]
[1646313113990,0.354594,43699.0,43698.0,0.006]
[1646313114190,0.55,43698.0,43684.0,0.1227]
[1646313114388,0.057267,43696.0,43689.0,0.13059469]
[1646313114589,0.354594,43695.0,43689.0,0.13059469]
[1646313114787,0.117118,43693.0,43689.0,0.13059469]
[1646313114988,0.117118,43693.0,43689.0,0.13559469]
[1646313115389,0.59227998,43690.0,43689.0,0.13559469]
[1646313116391,0.59227998,43690.0,43689.0,0.13059469]
[1646313117142,0.59327998,43690.0,43689.0,0.13059469]
[1646313118348,0.59227998,43690.0,43689.0,0.13059469]
[1646313119045,0.59427998,43690.0,43689.0,0.13059469]
[1646313120349,0.002,43690.0,43689.0,0.13059469]
[1646313120547,0.002,43690.0,43689.0,0.43059469]
[1646313120780,0.03398985,43699.0,43690.0,0.654]
[1646313120781,0.009167,43691.0,43690.0,0.654]
[1646313120990,0.03398985,43699.0,43690.0,0.954]
[1646313121381,0.354594,43698.0,43695.0,0.15454299]
[1646313121681,0.03398985,43699.0,43696.0,0.3]
[1646313122480,0.02898985,43699.0,43696.0,0.3]
[1646313123080,0.02898985,43699.0,43696.0,0.303]
[1646313124286,0.354594,43698.0,43696.0,0.003]
[1646313124965,0.354594,43698.0,43691.0,0.3]
[1646313125165,0.02898985,43699.0,43696.0,0.003]
[1646313125364,0.354594,43698.0,43696.0,0.003]
[1646313126364,0.02898985,43699.0,43693.0,0.6118865]
[1646313126565,0.02898985,43699.0,43693.0,0.17151617]
[1646313127168,0.02898985,43699.0,43690.0,0.02214212]
[1646313127365,0.117118,43697.0,43690.0,0.02214212]
[1646313127566,0.31601996,43696.0,43692.0,0.19018771]
[1646313127766,0.057267,43696.0,43690.0,0.02214212]
[1646313128166,0.114528,43702.0,43694.0,0.01814212]
[1646313128382,0.4,43710.0,43698.0,0.01814212]
[1646313128383,0.13885034,43703.0,43698.0,0.01814212]
[1646313128580,0.1,43710.0,43702.0,0.25683333]
[1646313128581,0.22631864,43708.0,43702.0,0.25683333]
[1646313128781,0.53885034,43710.0,43702.0,0.25683333]
[1646313128782,0.23885034,43710.0,43702.0,0.25683333]
[1646313128981,0.1,43710.0,43698.0,0.01814212]
[1646313129179,0.354594,43709.0,43699.0,0.18026452]
[1646313129579,0.117118,43707.0,43699.0,0.18026452]
[1646313129887,0.354594,43706.0,43698.0,0.02114212]
[1646313130082,0.117118,43702.0,43698.0,0.003]
[1646313130280,0.354594,43702.0,43693.0,0.31117721]
[1646313130480,0.21106798,43703.0,43693.0,0.31117721]
[1646313131080,0.21106798,43703.0,43693.0,0.1132]
[1646313131286,0.411853,43702.0,43693.0,0.1132]
[1646313131488,0.0459,43701.0,43693.0,0.1132]
[1646313131682,0.0459,43701.0,43690.0,0.004]
[1646313131683,0.117118,43700.0,43690.0,0.004]
[1646313131882,0.3,43699.0,43690.0,0.004]
[1646313132131,0.354594,43698.0,43690.0,0.004]
[1646313132731,0.117118,43694.0,43690.0,0.004]
[1646313134532,0.354594,43696.0,43690.0,0.004]
[1646313137079,0.41186,43696.0,43690.0,0.004]
[1646313137478,0.23302103,43694.0,43690.0,0.004]
[1646313137878,0.30690103,43694.0,43690.0,0.004]
[1646313138078,0.354594,43693.0,43690.0,0.004]
[1646313138281,0.700494,43693.0,43690.0,0.004]
[1646313139278,0.703494,43693.0,43690.0,0.004]
[1646313139524,0.403494,43693.0,43690.0,0.004]
[1646313139726,0.3,43692.0,43690.0,0.004]
[1646313139926,0.117118,43691.0,43690.0,0.004]
[1646313140128,0.174399,43691.0,43690.0,0.004]
[1646313141129,0.577399,43691.0,43690.0,0.004]
[1646313141331,1.01312965,43690.0,43689.0,0.09103559]
[1646313141529,1.78041365,43690.0,43689.0,0.09103559]
[1646313141730,2.15938424,43690.0,43689.0,0.09103559]
[1646313142129,2.12020917,43690.0,43689.0,0.09103559]
[1646313142328,2.17418285,43690.0,43689.0,0.09103559]
[1646313142527,2.30604073,43690.0,43689.0,0.09103559]
[1646313142933,2.30603842,43690.0,43689.0,0.09103559]
[1646313143296,1.0,43687.0,43670.0,0.01144]
[1646313143494,0.101768,43680.0,43669.0,0.3239835]
[1646313143692,0.417118,43679.0,43669.0,0.3239835]
[1646313143895,0.463018,43679.0,43669.0,0.3239835]
[1646313144092,0.354594,43677.0,43669.0,0.3239835]
[1646313144294,0.27885759,43672.0,43669.0,0.3239835]
[1646313144493,0.117118,43671.0,43669.0,0.1993835]
[1646313145293,0.117118,43671.0,43666.0,0.21522708]
[1646313145502,0.354594,43675.0,43666.0,0.21522708]
[1646313145698,0.23783032,43671.0,43666.0,0.21522708]
[1646313145895,0.1,43674.0,43666.0,0.21522708]
[1646313146096,0.354594,43673.0,43666.0,0.21522708]
[1646313146296,0.354594,43673.0,43669.0,0.18237484]
[1646313146496,0.354594,43673.0,43666.0,0.21522708]
[1646313146899,0.26510398,43673.0,43666.0,0.21522708]
[1646313147141,0.1,43674.0,43666.0,0.22022708]
[1646313147343,0.354594,43674.0,43667.0,0.00020835]
[1646313147542,0.13826603,43676.0,43667.0,0.00020835]
[1646313147842,0.354594,43675.0,43667.0,0.00020835]
[1646313148045,0.13826603,43676.0,43667.0,0.00020835]
[1646313148046,0.41853384,43676.0,43667.0,0.00020835]
[1646313148241,0.41853384,43676.0,43666.0,0.22022708]
[1646313148242,0.1,43675.0,43666.0,0.22022708]
[1646313148443,0.1,43675.0,43666.0,0.21522708]
[1646313148645,0.354594,43674.0,43669.0,0.00021234]
[1646313149048,0.1,43675.0,43669.0,0.00021234]
[1646313149447,0.354594,43674.0,43669.0,0.00021234]
[1646313149647,0.06736603,43676.0,43670.0,0.00021234]
[1646313149845,0.354594,43675.0,43670.0,0.00021234]
[1646313150247,0.117118,43673.0,43670.0,0.00021234]
[1646313150450,0.112118,43673.0,43670.0,0.00021234]
[1646313150650,0.112118,43673.0,43666.0,0.21522708]
[1646313150875,0.111725,43673.0,43669.0,0.00021234]
[1646313151077,0.111725,43673.0,43670.0,0.005]
[1646313151285,0.24025666,43672.0,43670.0,0.005]
[1646313151481,0.111726,43671.0,43670.0,0.005]
[1646313151876,0.111726,43670.0,43666.0,0.08043942]
[1646313152082,0.111726,43675.0,43668.0,0.00020756]
[1646313152276,0.211726,43675.0,43668.0,0.17034636]
[1646313152676,0.41524059,43675.0,43668.0,0.44855102]
[1646313152977,0.211726,43675.0,43668.0,0.44855102]
[1646313153180,0.211726,43675.0,43668.0,0.44834346]
[1646313153382,0.111726,43675.0,43668.0,0.44834346]
[1646313153777,0.111726,43675.0,43673.0,0.17360976]
[1646313154628,0.03506903,43676.0,43673.0,0.17360976]
[1646313155028,0.111726,43675.0,43673.0,0.17360976]
[1646313155641,0.04423903,43676.0,43674.0,0.01814212]
[1646313155642,0.00917,43676.0,43674.0,0.01814212]
[1646313155835,0.00404256,43691.0,43676.0,0.05727471]
[1646313155836,0.357277,43689.0,43676.0,0.05727471]
[1646313156032,0.057277,43689.0,43676.0,0.05727471]
[1646313156230,0.057277,43689.0,43673.0,0.17360976]
[1646313156430,0.37199478,43686.0,43679.0,0.01814212]
[1646313156831,0.057284,43684.0,43679.0,0.01814212]
[1646313157035,0.111726,43683.0,43679.0,0.01814212]
[1646313157231,0.057284,43684.0,43674.0,0.1251]
[1646313157433,0.057284,43684.0,43674.0,0.14324212]
[1646313157632,0.057284,43684.0,43677.0,0.26769413]
[1646313157832,0.111726,43683.0,43680.0,0.18294071]
[1646313158278,0.111726,43683.0,43679.0,0.01814212]
[1646313158485,0.111726,43683.0,43677.0,0.28583625]
[1646313159084,0.111726,43683.0,43677.0,0.26769413]
[1646313159381,0.111726,43683.0,43674.0,0.1181]
[1646313160483,0.111726,43683.0,43676.0,0.21465242]
[1646313161086,0.111726,43683.0,43676.0,0.23279454]
[1646313162450,0.111726,43683.0,43676.0,0.21465242]
[1646313163650,0.111726,43683.0,43676.0,0.23279454]
[1646313164050,0.111726,43683.0,43680.0,0.17751045]
[1646313165148,0.111726,43683.0,43680.0,0.18051045]
[1646313166210,0.16901,43683.0,43680.0,0.18051045]
[1646313166401,0.16901,43683.0,43678.0,0.01814212]
[1646313166601,0.16901,43683.0,43680.0,0.18641487]
[1646313166801,0.16901,43683.0,43678.0,0.01814212]
[1646313167401,0.111726,43683.0,43681.0,0.19193849]
[1646313168405,0.111726,43683.0,43682.0,0.16975837]
[1646313169204,0.111726,43683.0,43682.0,0.17575837]
[1646313170441,0.111726,43683.0,43682.0,0.16975837]
[1646313170643,0.13835678,43695.0,43684.0,0.05726158]
[1646313170841,0.00020634,43695.0,43684.0,0.05726158]
[1646313171043,0.00020634,43695.0,43691.0,0.27914113]
[1646313171258,0.111726,43694.0,43691.0,0.27914113]
[1646313171736,0.33425903,43702.0,43691.0,0.27914113]
[1646313171940,0.009166,43695.0,43691.0,0.27914113]
[1646313172137,0.111726,43693.0,43691.0,0.27914113]
[1646313172338,0.009166,43695.0,43691.0,0.27914113]
[1646313172539,0.00925354,43695.0,43691.0,0.27914113]
[1646313172838,0.111726,43694.0,43691.0,0.27914113]
[1646313173302,0.00925354,43695.0,43691.0,0.33639862]
[1646313173303,8.754e-05,43695.0,43691.0,0.33639862]
[1646313173505,0.111726,43694.0,43691.0,0.05725749]
[1646313173704,8.754e-05,43695.0,43691.0,0.05725749]
[1646313174105,8.754e-05,43695.0,43692.0,0.01814212]
[1646313174702,0.03425903,43702.0,43692.0,0.01803279]
[1646313175107,0.00938661,43696.0,43692.0,0.01803279]
[1646313175302,0.00938661,43696.0,43693.0,0.21792366]
[1646313175703,0.00938661,43696.0,43694.0,0.3]
[1646313175901,0.03514533,43702.0,43694.0,0.3]
[1646313176105,0.00022161,43697.0,43694.0,0.3]
[1646313177033,0.00022161,43697.0,43695.0,0.01803279]
[1646313177237,0.03425903,43702.0,43696.0,0.05725249]
[1646313177436,0.111726,43701.0,43698.0,0.23615998]
[1646313177639,0.03425903,43702.0,43698.0,0.23615998]
[1646313177835,0.111726,43701.0,43698.0,0.23615998]
[1646313178035,0.106726,43701.0,43698.0,0.23615998]
[1646313179342,0.106759,43700.0,43698.0,0.01803279]
[1646313179537,0.03448062,43702.0,43698.0,0.01803279]
[1646313179538,0.106759,43701.0,43698.0,0.01803279]
[1646313180776,0.106759,43701.0,43693.0,0.11450036]
[1646313180981,0.106759,43701.0,43695.0,0.01803279]
[1646313181179,0.106759,43700.0,43698.0,0.004]
[1646313182480,0.057265,43699.0,43692.0,0.01803279]
[1646313182681,0.106759,43698.0,43692.0,0.01803279]
[1646313182879,0.106139,43698.0,43692.0,0.01803279]
[1646313183580,0.00020563,43697.0,43690.0,0.20117308]
[1646313183981,0.00020563,43697.0,43689.0,0.1243]
[1646313184179,0.28310712,43697.0,43689.0,0.1243]
[1646313184383,0.106131,43696.0,43689.0,0.1243]
[1646313184641,0.00020563,43695.0,43688.0,0.01803279]
[1646313185544,0.28290149,43697.0,43688.0,0.01803279]
[1646313185744,0.28290149,43697.0,43690.0,0.20648284]
[1646313185745,0.00020563,43695.0,43690.0,0.20648284]
[1646313185943,0.00020563,43695.0,43688.0,0.01803279]
[1646313186145,0.10633663,43695.0,43688.0,0.01803279]
[1646313186543,0.00020563,43695.0,43688.0,0.01803279]
[1646313186746,0.009167,43696.0,43688.0,0.01803279]
[1646313186948,0.0002061,43695.0,43688.0,0.20801233]
[1646313187144,0.106131,43694.0,43688.0,0.20801233]
[1646313187346,0.106131,43694.0,43688.0,0.21401233]
[1646313187548,0.0002061,43695.0,43688.0,0.21401233]
[1646313187947,0.05727,43695.0,43688.0,0.02403279]
[1646313188311,0.106131,43694.0,43688.0,0.006]
[1646313188911,0.0002061,43695.0,43690.0,0.15860668]
[1646313189106,0.23815044,43699.0,43687.0,0.1886395]
[1646313189311,0.106131,43698.0,43688.0,0.006]
[1646313189512,0.0002061,43695.0,43688.0,0.006]
[1646313190310,0.1,43699.0,43692.0,0.16677146]
[1646313190509,0.106131,43698.0,43688.0,0.006]
[1646313190710,0.00020607,43695.0,43688.0,0.006]
[1646313190910,0.00020607,43695.0,43687.0,0.1886395]
[1646313191110,0.15247107,43699.0,43688.0,0.3]
[1646313191310,0.106131,43698.0,43687.0,0.1886395]
[1646313191510,0.106131,43698.0,43688.0,0.18355581]
[1646313191709,0.28313656,43696.0,43689.0,0.23991137]
[1646313191909,0.106131,43695.0,43688.0,0.18355581]
[1646313192574,0.106131,43694.0,43688.0,0.18355581]
[1646313192771,0.106131,43698.0,43688.0,0.18355581]
[1646313193071,0.38081291,43698.0,43688.0,0.18355581]
[1646313193272,0.106131,43696.0,43688.0,0.18355581]
[1646313193473,0.1,43697.0,43688.0,0.18355581]
[1646313194475,0.00022159,43699.0,43690.0,0.05725922]
[1646313194678,0.115297,43698.0,43690.0,0.05725922]
[1646313194874,0.00022159,43699.0,43690.0,0.05725922]
[1646313194875,0.106131,43697.0,43690.0,0.05725922]
[1646313195075,0.106131,43698.0,43690.0,0.05725922]
[1646313195275,0.106131,43701.0,43690.0,0.06125922]
[1646313195475,0.000205,43699.0,43690.0,0.06125922]
[1646313195675,0.000205,43699.0,43694.0,0.20740237]
[1646313196294,0.206131,43701.0,43694.0,0.20740237]
[1646313196698,0.106131,43698.0,43694.0,0.20740237]
[1646313196896,0.106131,43698.0,43690.0,0.05725922]
[1646313198000,0.106131,43698.0,43691.0,0.21281069]
[1646313199547,0.000205,43699.0,43696.0,0.27776863]
[1646313199746,0.000205,43699.0,43698.0,0.01803279]
[1646313199941,0.03425903,43702.0,43698.0,0.01803279]
[1646313200441,0.03425903,43702.0,43699.0,0.15532765]
[1646313200442,0.00020612,43700.0,43699.0,0.15532765]
[1646313201241,0.03425903,43702.0,43699.0,0.15732765]
[1646313201443,0.03446515,43702.0,43699.0,0.15732765]
[1646313202442,0.03425903,43702.0,43699.0,0.15732765]
[1646313202645,0.03425903,43702.0,43699.0,0.15532765]
[1646313204395,0.03425903,43702.0,43698.0,0.01803279]
[1646313204593,0.03425903,43702.0,43696.0,0.27776863]
[1646313204992,0.03446507,43702.0,43696.0,0.27776863]
[1646313205193,0.03446507,43702.0,43695.0,0.01803279]
[1646313205496,0.057262,43701.0,43691.0,0.004]
[1646313205698,0.106131,43700.0,43691.0,0.004]
[1646313206293,0.00020605,43699.0,43691.0,0.004]
[1646313206496,0.25669519,43698.0,43690.0,0.21003279]
[1646313206696,0.163398,43697.0,43690.0,0.192]
[1646313206896,0.106131,43695.0,43689.0,0.1187]
[1646313207349,0.106131,43695.0,43685.0,0.004]
[1646313207747,0.106131,43695.0,43686.0,0.3585838]
[1646313207948,0.057273,43693.0,43686.0,0.3585838]
[1646313208150,0.106131,43692.0,43686.0,0.3585838]
[1646313208549,0.106131,43692.0,43686.0,0.6585838]
[1646313209149,0.106131,43691.0,43686.0,0.6585838]
[1646313209352,0.106131,43697.0,43686.0,0.6625838]
[1646313209551,0.163398,43697.0,43686.0,0.6625838]
[1646313209753,0.263398,43697.0,43686.0,0.48345701]
[1646313209952,0.26422217,43697.0,43686.0,0.48345701]
[1646313210549,0.26422217,43697.0,43686.0,0.47945701]
[1646313210785,0.263398,43697.0,43689.0,0.1775685]
[1646313210988,0.263398,43697.0,43686.0,0.47945701]
[1646313211788,0.263398,43697.0,43686.0,0.3]
[1646313211989,0.263398,43697.0,43687.0,0.20643509]
[1646313212591,0.263398,43697.0,43687.0,0.47807501]
[1646313212789,0.263398,43697.0,43686.0,0.3]
[1646313214391,0.263398,43697.0,43684.0,0.16915832]
[1646313214639,0.263398,43697.0,43685.0,0.3]
[1646313214841,0.06544392,43694.0,43685.0,0.3]
[1646313215041,0.263398,43697.0,43684.0,0.43792233]
[1646313215042,0.106131,43693.0,43684.0,0.43792233]
[1646313215539,0.106131,43693.0,43685.0,0.004]
[1646313215938,0.106131,43693.0,43685.0,0.20126036]
[1646313216641,0.106131,43693.0,43684.0,0.43792233]
[1646313217040,0.106131,43693.0,43685.0,0.3]
[1646313217242,0.106131,43693.0,43685.0,0.31803279]
[1646313217443,0.106131,43693.0,43685.0,0.01803279]
[1646313217642,0.057267,43697.0,43685.0,0.01803279]
[1646313217845,0.106131,43696.0,43688.0,0.21298343]
[1646313218042,0.33116273,43696.0,43688.0,0.21298343]
[1646313218291,0.1,43695.0,43691.0,0.1855614]
[1646313218492,0.106131,43694.0,43691.0,0.1855614]
[1646313219297,0.106131,43694.0,43691.0,0.1865614]
[1646313219792,0.106131,43694.0,43691.0,0.001]
[1646313220194,0.220688,43694.0,43691.0,0.001]
[1646313220499,0.163408,43692.0,43691.0,0.001]
[1646313221097,0.163408,43692.0,43686.0,0.00065801]
[1646313223143,0.106131,43692.0,43686.0,0.00065801]
[1646313223340,0.106131,43692.0,43686.0,0.00565801]
[1646313223740,0.1398603,43692.0,43691.0,0.00065862]
[1646313224541,0.1298603,43692.0,43691.0,0.00065862]
[1646313225243,0.1328603,43692.0,43691.0,0.00065862]
[1646313226691,0.1248603,43692.0,43691.0,0.00065862]
[1646313228893,0.1248603,43692.0,43684.0,0.17845472]
[1646313229296,0.1288603,43692.0,43684.0,0.17845472]
[1646313229755,0.1288603,43692.0,43684.0,0.42040148]
[1646313230557,0.1248603,43692.0,43684.0,0.42040148]
[1646313231856,0.0337293,43692.0,43684.0,0.42040148]
[1646313233057,0.1248543,43692.0,43691.0,0.21014584]
[1646313233704,0.1248543,43692.0,43691.0,0.19014584]
[1646313234303,0.009166,43693.0,43691.0,0.19014584]
[1646313234506,0.009166,43693.0,43692.0,0.37283379]
[1646313235304,0.13835649,43699.0,43692.0,0.01803279]
[1646313236105,0.13815044,43699.0,43692.0,0.01803279]
[1646313236307,0.13835649,43699.0,43692.0,0.01803279]
[1646313237350,0.13815044,43699.0,43692.0,0.02103279]
[1646313237545,0.13835649,43699.0,43692.0,0.02103279]
[1646313238344,0.13835649,43699.0,43692.0,0.003]
[1646313238545,0.13835649,43699.0,43689.0,0.0459]
[1646313238546,0.19965326,43699.0,43689.0,0.0459]
[1646313238748,0.19985931,43699.0,43689.0,0.0459]
[1646313239546,0.19985931,43699.0,43690.0,0.27567047]
[1646313239547,0.19965326,43699.0,43690.0,0.27567047]
[1646313239947,0.19985931,43699.0,43690.0,0.27567047]
[1646313240249,0.13835649,43699.0,43687.0,0.21556081]
[1646313240448,0.13835649,43699.0,43691.0,0.01803279]
[1646313240908,0.13815044,43699.0,43691.0,0.01803279]
[1646313241106,0.13835649,43699.0,43691.0,0.01803279]
[1646313241309,0.13835649,43699.0,43691.0,0.02203279]
[1646313241506,0.13835649,43699.0,43691.0,0.0792882]
[1646313242109,0.13815044,43699.0,43691.0,0.0792882]
[1646313242306,0.13835649,43699.0,43691.0,0.0792882]
[1646313242506,0.13835649,43699.0,43692.0,0.26794537]
[1646313243308,0.13815044,43699.0,43692.0,0.27094537]
[1646313243510,0.13835649,43699.0,43692.0,0.27094537]
[1646313244555,0.13815044,43699.0,43692.0,0.26794537]
[1646313244756,0.13835649,43699.0,43692.0,0.26794537]
[1646313245657,0.13815044,43699.0,43692.0,0.26794537]
[1646313245861,0.13835649,43699.0,43692.0,0.27094537]
[1646313246858,0.13815044,43699.0,43692.0,0.27094537]
[1646313247059,0.13835649,43699.0,43692.0,0.26794537]
[1646313247457,0.13835649,43699.0,43692.0,0.27094537]
[1646313247658,0.13835649,43699.0,43692.0,0.003]
[1646313248061,0.13815044,43699.0,43692.0,0.003]
[1646313248308,0.13835649,43699.0,43692.0,0.003]
[1646313248504,0.13835649,43699.0,43694.0,0.00058127]
[1646313249110,0.43835649,43699.0,43694.0,0.00058127]
[1646313249308,0.191125,43698.0,43694.0,0.00058127]
[1646313249510,0.305667,43698.0,43694.0,0.00058127]
[1646313250106,0.191125,43698.0,43694.0,0.00058127]
[1646313251107,0.31044735,43695.0,43694.0,0.00058127]
[1646313251308,0.41044735,43695.0,43694.0,0.00058127]
[1646313251507,0.41044735,43695.0,43694.0,0.00158127]
[1646313252758,0.41044735,43695.0,43694.0,0.00058127]
[1646313253358,0.091125,43694.0,43689.0,0.17599907]
[1646313253560,0.091125,43694.0,43689.0,0.17699907]
[1646313254160,0.091125,43694.0,43689.0,0.001]
[1646313254961,0.091125,43694.0,43684.0,0.01803279]
[1646313254962,0.15727,43698.0,43684.0,0.01803279]
[1646313255162,0.091125,43697.0,43689.0,0.21781188]
[1646313255362,0.091125,43697.0,43690.0,0.2754452]
[1646313255562,0.091125,43697.0,43689.0,0.22181188]
[1646313255806,0.00011417,43690.0,43689.0,0.22181188]
[1646313256811,0.00011417,43690.0,43689.0,0.21781188]
[1646313257412,0.00011417,43690.0,43689.0,0.22181188]
[1646313258712,0.00011417,43690.0,43689.0,0.21781188]
[1646313258911,0.09123917,43690.0,43684.0,0.01803279]
[1646313259114,0.09123917,43690.0,43682.0,0.32379176]
[1646313259115,0.00011417,43690.0,43682.0,0.32379176]
[1646313259313,0.00011417,43690.0,43684.0,0.004]
[1646313259956,0.00011417,43690.0,43684.0,0.182727]
[1646313260158,0.23471224,43689.0,43684.0,0.182727]
[1646313260757,0.23471224,43689.0,43684.0,0.18263027]
[1646313261258,0.23471224,43689.0,43684.0,0.178727]
[1646313262059,0.00011417,43690.0,43684.0,0.178727]
[1646313262657,2.529e-05,43690.0,43684.0,0.178727]
[1646313265701,0.091125,43689.0,43684.0,0.178727]
[1646313266300,0.091125,43689.0,43682.0,0.13073279]
[1646313266301,0.057277,43689.0,43682.0,0.13073279]
[1646313266503,0.0637231,43687.0,43682.0,0.1127]
[1646313266801,0.091125,43686.0,43682.0,0.1127]
[1646313267049,0.391125,43686.0,43682.0,0.1127]
[1646313267250,0.091125,43685.0,43677.0,0.16907184]
[1646313267455,0.057285,43683.0,43679.0,0.00020581]
[1646313268451,0.091125,43682.0,43677.0,0.17407184]
[1646313268651,0.3,43686.0,43679.0,0.00020693]
[1646313268849,0.091125,43685.0,43679.0,0.00020693]
[1646313269048,0.009168,43683.0,43679.0,0.00020693]
[1646313269449,0.15728,43688.0,43679.0,0.00520693]
[1646313269651,0.091125,43687.0,43679.0,0.005]
[1646313269849,0.091125,43687.0,43679.0,0.00520693]
[1646313270650,0.091125,43687.0,43679.0,0.00020693]
[1646313270903,0.091125,43687.0,43677.0,0.16907184]
[1646313270904,0.041125,43687.0,43677.0,0.16907184]
[1646313271106,0.041125,43687.0,43679.0,0.00020693]
[1646313271304,0.041125,43687.0,43679.0,0.01823972]
[1646313271511,0.04112,43689.0,43680.0,0.05727346]
[1646313272305,0.28981392,43688.0,43680.0,0.30461133]
[1646313272507,0.28981392,43688.0,43679.0,0.02323965]
[1646313272508,0.04112,43687.0,43679.0,0.00520686]
[1646313272708,0.14112,43687.0,43679.0,0.00020686]
[1646313273306,0.14112,43687.0,43679.0,0.01803279]
[1646313273508,0.14112,43687.0,43679.0,0.01823964]
[1646313273707,0.14112,43687.0,43679.0,0.00020685]
[1646313273907,0.04112,43687.0,43679.0,0.00020685]
[1646313274110,0.04112,43686.0,43680.0,0.28334287]
[1646313274308,0.04112,43689.0,43679.0,0.00020685]
[1646313274550,0.04112,43689.0,43678.0,0.11674194]
[1646313274752,0.04112,43689.0,43679.0,0.01823964]
[1646313275255,0.04112,43689.0,43684.0,0.20064133]
[1646313275751,0.14112,43689.0,43684.0,0.20064133]
[1646313277454,0.14512,43689.0,43684.0,0.20064133]
[1646313278402,0.04512,43689.0,43684.0,0.20064133]
[1646313278599,0.004,43689.0,43685.0,0.01803279]
[1646313278806,2.529e-05,43690.0,43685.0,0.01803279]
[1646313279005,2.529e-05,43690.0,43686.0,0.20988495]
[1646313279306,2.529e-05,43690.0,43687.0,0.31803279]
[1646313280309,2.529e-05,43690.0,43687.0,0.37529406]
[1646313281507,2.529e-05,43690.0,43687.0,0.37829406]
[1646313282861,2.529e-05,43690.0,43687.0,0.63468558]
[1646313283456,2.529e-05,43690.0,43687.0,0.37529406]
[1646313289555,2.529e-05,43690.0,43687.0,0.37929406]
[1646313290361,2.529e-05,43690.0,43688.0,0.400709]
[1646313290563,2.529e-05,43690.0,43689.0,0.654809]
[1646313290756,2.529e-05,43690.0,43689.0,0.700709]
[1646313291157,2.529e-05,43690.0,43689.0,0.69917933]
[1646313291559,2.529e-05,43690.0,43689.0,0.70317933]
[1646313292763,2.529e-05,43690.0,43689.0,0.69917933]
[1646313296906,2.529e-05,43690.0,43689.0,0.86558949]
[1646313297344,2.529e-05,43690.0,43689.0,0.69917933]
[1646313298353,2.529e-05,43690.0,43687.0,0.01803279]
[1646313298548,2.529e-05,43690.0,43688.0,0.354809]
[1646313298749,2.529e-05,43690.0,43689.0,0.654809]
[1646313298948,2.529e-05,43690.0,43689.0,0.354809]
[1646313300454,2.529e-05,43690.0,43687.0,0.01803279]
[1646313300651,2.529e-05,43690.0,43688.0,0.354809]
[1646313301130,2.529e-05,43690.0,43689.0,0.26636736]
[1646313301332,2.529e-05,43690.0,43689.0,0.354809]
[1646313301930,2.529e-05,43690.0,43689.0,0.654809]
[1646313302532,2.529e-05,43690.0,43689.0,0.3]
[1646313302731,2.529e-05,43690.0,43688.0,0.05725813]
[1646313303730,2.529e-05,43690.0,43689.0,0.00074326]
[1646313303932,2.529e-05,43690.0,43689.0,0.35555226]
[1646313304135,2.529e-05,43690.0,43689.0,0.65555226]
[1646313304331,2.529e-05,43690.0,43689.0,0.35555226]
[1646313305553,2.529e-05,43690.0,43689.0,0.35955226]
[1646313306655,2.529e-05,43690.0,43689.0,0.35555226]
[1646313306855,2.529e-05,43690.0,43689.0,0.00074326]
[1646313307156,2.529e-05,43690.0,43689.0,0.35555226]
[1646313307654,2.529e-05,43690.0,43689.0,0.36055226]
[1646313308056,2.529e-05,43690.0,43689.0,0.00574326]
[1646313308898,2.529e-05,43690.0,43689.0,0.00074326]
[1646313309101,2.529e-05,43690.0,43689.0,0.03354791]
[1646313309299,2.529e-05,43690.0,43689.0,0.06635256]
[1646313309503,2.529e-05,43690.0,43689.0,0.0696093]
[1646313310100,3.25527997,43700.0,43689.0,0.0696093]
[1646313310300,0.057267,43698.0,43688.0,0.18769491]
[1646313310901,0.040461,43697.0,43687.0,0.00065105]
[1646313311106,0.040461,43696.0,43687.0,0.00065105]
[1646313311703,0.0459,43695.0,43687.0,0.00065105]
[1646313311906,0.27722444,43691.0,43689.0,0.00012017]
[1646313312194,0.097739,43690.0,43689.0,0.00012017]
[1646313312992,0.097739,43690.0,43687.0,0.00085784]
[1646313313392,0.27615332,43689.0,43687.0,0.00085784]
[1646313313593,0.040461,43688.0,43687.0,0.00085784]
[1646313313894,0.140461,43688.0,43687.0,0.00085784]
[1646313314091,0.140461,43688.0,43687.0,0.00065105]
[1646313314491,0.140461,43688.0,43685.0,0.0002068]
[1646313314991,0.040461,43688.0,43685.0,0.0002068]
[1646313315192,0.040461,43688.0,43682.0,0.05]
[1646313315493,0.040461,43688.0,43685.0,0.001]
[1646313316905,0.040461,43688.0,43684.0,0.00020696]
[1646313317706,0.040461,43688.0,43682.0,0.05]
[1646313317909,0.043461,43688.0,43684.0,0.00020697]
[1646313318908,0.043461,43688.0,43682.0,0.05]
[1646313319111,0.040461,43688.0,43684.0,0.00020676]
[1646313319555,0.159036,43688.0,43684.0,0.00020676]
[1646313319757,0.259036,43688.0,43684.0,0.00020676]
[1646313320154,0.259036,43688.0,43682.0,0.05]
[1646313320357,0.259036,43688.0,43684.0,0.00020676]
[1646313320859,0.255036,43688.0,43677.0,0.1234]
[1646313321064,0.255036,43688.0,43669.0,0.1136]
[1646313321065,0.040461,43686.0,43669.0,0.1136]
[1646313321259,0.040461,43683.0,43669.0,0.1136]
[1646313321458,0.040461,43675.0,43669.0,0.1136]
[1646313321761,0.040461,43675.0,43672.0,0.002]
[1646313322556,0.097758,43675.0,43672.0,0.002]
[1646313322756,0.040461,43675.0,43671.0,0.00012035]
[1646313323607,0.040461,43675.0,43669.0,0.1136]
[1646313323811,0.040461,43675.0,43671.0,0.00012035]
[1646313324010,0.07398285,43675.0,43671.0,0.00012035]
[1646313324608,0.07398285,43675.0,43673.0,0.17695891]
[1646313325010,0.07398285,43675.0,43669.0,0.1136]
[1646313325210,0.07398285,43675.0,43671.0,0.00020697]
[1646313325810,0.040461,43675.0,43671.0,0.00020697]
[1646313326013,0.040461,43675.0,43669.0,0.1166]
[1646313326310,0.040461,43675.0,43671.0,0.00020973]
[1646313327360,0.040461,43675.0,43669.0,0.1136]
[1646313327361,0.057298,43674.0,43669.0,0.1136]
[1646313327562,0.040461,43673.0,43671.0,0.00020973]
[1646313328464,0.040461,43673.0,43666.0,0.004]
[1646313328663,0.040461,43673.0,43663.0,0.09630973]
[1646313328864,0.140461,43673.0,43664.0,0.17545721]
[1646313329668,0.140461,43673.0,43664.0,0.18045721]
[1646313330667,0.140461,43673.0,43664.0,0.48045721]
[1646313330904,0.140461,43673.0,43664.0,0.47545721]
[1646313330905,0.040461,43673.0,43664.0,0.47545721]
[1646313331507,0.040461,43673.0,43667.0,0.25014004]